Workbook

Sheet Sheet1
A1: Logger Calibration Sheet | H1: Instructions
H2: - only change cell in blue ink (Reference in ft and Measurements in ft)
A3: Settings | H3: - Switch logger on with correct QNH, let them stabilize for 10-15min
A4: Date | C4: March 20, 2013 | H4: - If reference is unknown, leave empty (median will be used)
A5: QNH | C5: 1021 | F5: hPa | H5: - Copy the Correction Data ot the instrerr.cfg
A6: Reference Altitude | C6: 100 | F6: ft | H6: - Verification can be used to verify after applying the instrerr.cfg
C7: =IF(C6<>"",C6*0.3048,"") -> 30.5 | F7: m | H7: - Detailed instructions: http://www.balloonloggers.org/?p=417
A9: Logger Information | D9: Calibration | K9: Verification
A10: Logger No | B10: Logger S/N | D10: Measurement | F10: Deviation | I10: Correction | K10: Measurement | M10: Deviation
D11: ft | E11: m | F11: ft | G11: m | H11: cm | K11: ft | L11: m | M11: ft | N11: m | O11: cm
A12: 1 | B12: 5AC | D12: 102 | E12: =IF(D12<>0,D12*0.3048,"") -> 31.09 | F12: =IF(D12<>"",G12/0.3048,"") -> -2 | G12: =IF(D12<>"",IF($C$7<>"",$C$7-E12,$E$123-E12),"") -> -0.61 | H12: =IF(D12<>"",ROUND(G12*10,0),"") -> -6 | I12: =IF(D12<>0,CONCATENATE(B12,"=",H12),"") -> 5AC=-6 | K12: 99 | L12: =IF(K12>0,K12*0.3048,"") -> 30.18 | M12: =IF(K12<>"",N12/0.3048,"") -> 1 | N12: =IF(K12<>"",IF($C$7<>"",$C$7-L12,$E$123-L12),"") -> 0.30 | O12: =IF(K12<>"",ROUND(N12*10,0),"") -> 3
A13: 2 | B13: 5AD | D13: 90 | E13: =IF(D13<>0,D13*0.3048,"") -> 27.43 | F13: =IF(D13<>"",G13/0.3048,"") -> 10 | G13: =IF(D13<>"",IF($C$7<>"",$C$7-E13,$E$123-E13),"") -> 3.05 | H13: =IF(D13<>"",ROUND(G13*10,0),"") -> 30 | I13: =IF(D13<>0,CONCATENATE(B13,"=",H13),"") -> 5AD=30 | K13: 100 | L13: =IF(K13>0,K13*0.3048,"") -> 30.48 | M13: =IF(K13<>"",N13/0.3048,"") -> 0 | N13: =IF(K13<>"",IF($C$7<>"",$C$7-L13,$E$123-L13),"") -> 0.00 | O13: =IF(K13<>"",ROUND(N13*10,0),"") -> 0
A14: 3 | B14: 5AE | E14: =IF(D14<>0,D14*0.3048,"") ->  | I14: =IF(D14<>0,CONCATENATE(B14,"=",H14),"") -> 
A15: 4 | B15: 5AF
A16: 5 | B16: 5AG
A17: 6 | B17: 5AH
A18: 7 | B18: 5AI
A19: 8 | B19: 5AJ
A20: 9 | B20: 5AK
A21: 10 | B21: 5AL
A22: 11 | B22: 5AM
A23: 12 | B23: 5AN
A24: 13 | B24: 5AP
A25: 14 | B25: 5AQ
A26: 15 | B26: 5AR
A27: 16 | B27: 5AS
A28: 17 | B28: 5AT
A29: 18 | B29: 5AU
A30: 19 | B30: 5AV
A31: 20 | B31: 5AW
A32: 21 | B32: 5AX
A33: 22 | B33: 5AY
A34: 23 | B34: 5AZ
A35: 24 | B35: 5B0
A36: 25 | B36: 5B1
A37: 26 | B37: 5B2
A38: 27 | B38: 5B3
A39: 28 | B39: 5B4
A40: 29 | B40: 5B5
A41: 30 | B41: 5B6
A42: 31 | B42: 5B7
A43: 32 | B43: 5B8
A44: 33 | B44: 5B9
A45: 34 | B45: 5BA
A46: 35 | B46: 5BB
A47: 36 | B47: 5BC
A48: 37 | B48: 5BD
A49: 38 | B49: 5BE
A50: 39 | B50: 5BF
A51: 40 | B51: 5BG
A52: 41 | B52: 5EZ
A53: 42 | B53: 5F0
A54: 43 | B54: 5Y4
A55: 44 | B55: 5F3
A56: 45 | B56: 5F4
A57: 46 | B57: 5IE
A58: 47 | B58: 5IF
A59: 48 | B59: 5IG
A60: 49 | B60: 5IH
A61: 50 | B61: 5IJ
A62: 51 | B62: 5IK
A63: 52 | B63: 5IL
A64: 53 | B64: 5NE
A65: 54 | B65: 5NF
A66: 55 | B66: 5NG
A67: 56 | B67: 5NH
A68: 57 | B68: 5NI
A69: 58 | B69: 5NJ
A70: 59 | B70: 5NK
A71: 60 | B71: 5NL
A72: 61 | B72: 5NM
A73: 62 | B73: 5NN
A74: 63 | B74: 5NP
A75: 64 | B75: 5NQ
A76: 65 | B76: 5NR
A77: 66 | B77: 5NS | F77: =IF(D77<>"",G77/0.3048,"") ->  | G77: =IF(D77<>"",IF($C$7<>"",$C$7-E77,$E$123-E77),"") ->  | H77: =IF(D77<>"",ROUND(G77*10,0),"") ->  | L77: =IF(K77>0,K77*0.3048,"") ->  | M77: =IF(K77<>"",N77/0.3048,"") ->  | N77: =IF(K77<>"",IF($C$7<>"",$C$7-L77,$E$123-L77),"") ->  | O77: =IF(K77<>"",ROUND(N77*10,0),"") -> 
A78: 67 | B78: 5NT | E78: =IF(D78<>0,D78*0.3048,"") ->  | I78: =IF(D78<>0,CONCATENATE(B78,"=",H78),"") -> 
A79: 68 | B79: 5NU
A80: 69 | B80: 5NV
A81: 70 | B81: 5NW
A82: 71 | B82: 5NX
A83: 72 | B83: 5NY
A84: 73 | B84: 5NZ
A85: 74 | B85: 5P0
A86: 75 | B86: 5P1
A87: 76 | B87: 5P2
A88: 77 | B88: 5P3
A89: 78 | B89: 5P4
A90: 79 | B90: 5P5
A91: 80 | B91: 5P6
A92: 81 | B92: 5P7
A93: 82 | B93: 5P8
A94: 83 | B94: 5PC
A95: 84 | B95: 5PD
A96: 85 | B96: 5PF
A97: 86 | B97: 5PG
A98: 87 | B98: 5PJ
A99: 88 | B99: 5PK
A100: 89 | B100: 5PM
A101: 90 | B101: 5PN
A102: 91 | B102: 5WE
A103: 92 | B103: 5WF
A104: 93 | B104: 5WG
A105: 94 | B105: 5WH
A106: 95 | B106: 5WI
A107: 96 | B107: 5WJ
A108: 97 | B108: 5WK
A109: 98 | B109: 5WL
A110: 99 | B110: 5WM
A111: 100 | B111: 5WN
A112: 101 | B112: 5WP
A113: 102 | B113: 5WQ
A114: 103 | B114: 5WR
A115: 104 | B115: 5WS
A116: 105 | B116: 5WT
A117: 106 | B117: 5WU
A118: 107 | B118: 5WV
A119: 108 | B119: 5WX
A120: 109 | B120: 5XS
A121: 110 | B121: 5XT
A123: Statistics | B123: Median | D123: =MEDIAN(D12:D121) -> 96 | E123: =MEDIAN(E12:E121) -> 29.26 | K123: =MEDIAN(K12:K121) -> 100 | L123: =MEDIAN(L12:L121) -> 30.33
B124: Min | D124: =MIN(D12:D121) -> 90 | E124: =D124*0.3048 -> 27.43 | K124: =MIN(K12:K121) -> 99 | L124: =K124*0.3048 -> 30.18
B125: Max | D125: =MAX(D12:D121) -> 102 | E125: =D125*0.3048 -> 31.09 | K125: =MAX(K12:K121) -> 100 | L125: =K125*0.3048 -> 30.48
B126: Std Deviation | D126: =STDEV(D12:D121) -> 8 | E126: =D126*0.3048 -> 2.59 | K126: =STDEV(K12:K121) -> 1 | L126: =K126*0.3048 -> 0.22
B127: Spread Min/Max | D127: =D125-D124 -> 12 | E127: =D127*0.3048 -> 3.66 | K127: =K125-K124 -> 1 | L127: =K127*0.3048 -> 0.30

Sheet Sheet2

Sheet Sheet3
